[Event "CZE-ch Youth G10-G12-G14 2022"]
[Site "Luhacovice"]
[Date "2022.03.18"]
[Round "8.7"]
[White "Melicharova Veronika"]
[Black "Mazurkova Viktorie"]
[Result "0-1"]
[ECO "A45"]
[WhiteElo "1000"]
[BlackElo "1000"]
[Annotator "NA"]
[PlyCount "109"]
[EventDate "2022.03.12"]
[EventType "swiss"]
[EventCountry "CZE"]
[SourceTitle "playchess.com"]
[Source "ChessBase"]
[SourceQuality "1"]
[TimeControl "40/5400+30:1800+30"]

1. e4 {[%emt 0:00:03]} e6 {[%emt 0:00:11]} 2. d4 {[%emt 0:00:16]} Nf6 {[%emt 0:00:19]} 3. Nc3 {[%emt 0:00:32]} Bb4 {[%emt 0:00:45]} 4. Nf3 {[%emt 0:00:27]} Bxc3+ {[%emt 0:00:54]} 5. bxc3 {[%emt 0:00:15]} Nxe4 {[%emt 0:01:40]} 6. Bd2 {[%emt 0:00:54]} Nxd2 {[%emt 0:00:30]} 7. Qxd2 {[%emt 0:00:30]} d5 {[%emt 0:00:30]} 8. c4 {[%emt 0:00:30]} c6 {[%emt 0:01:11]} 9. cxd5 {[%emt 0:00:43]} Qxd5 {[%emt 0:00:35]} 10. Be2 {[%emt 0:00:26]} O-O {[%emt 0:00:29]} 11. O-O {[%emt 0:00:23]} Nd7 {[%emt 0:00:37]} 12. Rab1 {[%emt 0:00:38]} c5 {[%emt 0:00:40]} 13. c4 {[%emt 0:00:40]} Qd6 {[%emt 0:01:03]} 14. dxc5 {[%emt 0:00:24]} Qxd2 {[%emt 0:00:43]} 15. Nxd2 {[%emt 0:00:12]} Nxc5 {[%emt 0:00:30]} 16. Nb3 {[%emt 0:00:56]} Nxb3 {[%emt 0:00:31]} 17. Rxb3 {[%emt 0:00:11]} Rd8 {[%emt 0:00:18]} 18. h3 {[%emt 0:00:25]} h6 {[%emt 0:00:12]} 19. Bf3 {[%emt 0:00:35]} Rb8 {[%emt 0:00:27]} 20. Ra3 {[%emt 0:00:25]} a6 {[%emt 0:01:18]} 21. Rb3 {[%emt 0:01:23]} Rd4 {[%emt 0:01:56]} 22. c5 {[%emt 0:00:22]} e5 {[%emt 0:01:26]} 23. Re1 {[%emt 0:00:20]} f6 {[%emt 0:01:34]} 24. c6 {[%emt 0:00:27]} b5 {[%emt 0:01:11]} 25. c7 {[%emt 0:01:31]} Rb6 {[%emt 0:00:14]} 26. a4 {[%emt 0:00:21]} Rxa4 {[%emt 0:01:03]} 27. Bd5+ {[%emt 0:00:31]} Kf8 {[%emt 0:00:47]} 28. Rc1 {[%emt 0:00:52]} Rd4 {[%emt 0:02:11]} 29. Bc6 {[%emt 0:00:38]} Rd6 {[%emt 0:00:59]} 30. Bf3 {[%emt 0:00:41]} Ke7 {[%emt 0:02:04]} 31. Bg4 {[%emt 0:00:21]} Bb7 {[%emt 0:01:30]} 32. c8=Q {[%emt 0:00:35]} Bxc8 {[%emt 0:00:15]} 33. Bxc8 {[%emt 0:00:11]} Rbc6 {[%emt 0:00:26]} 34. Rbc3 {[%emt 0:00:17]} Rxc3 {[%emt 0:00:35]} 35. Rxc3 {[%emt 0:00:08]} Rd1+ {[%emt 0:00:15]} 36. Kh2 {[%emt 0:00:10]} b4 {[%emt 0:00:44]} 37. Rc7+ {[%emt 0:00:39]} Kd8 {[%emt 0:00:28]} 38. Rc6 {[%emt 0:00:40]} b3 {[%emt 0:00:51]} 39. Bf5 {[%emt 0:00:38]} a5 {[%emt 0:00:41]} 40. Bg4 {[%emt 0:00:22]} Ra1 {[%emt 0:00:48]} 41. Rc8+ {[%emt 0:30:31]} Ke7 {[%emt 0:30:24]} 42. Rb8 {[%emt 0:00:37]} a4 {[%emt 0:00:52]} 43. Rb7+ {[%emt 0:01:11]} Kd8 {[%emt 0:00:50]} 44. Rd7+ {[%emt 0:00:21]} Ke8 {[%emt 0:00:24]} 45. Be6 {[%emt 0:00:43]} b2 {[%emt 0:01:10]} 46. Bf5 {[%emt 0:01:20]} b1=Q {[%emt 0:00:42]} 47. Bxb1 {[%emt 0:00:45]} Kxd7 {[%emt 0:00:11]} 48. Bf5+ {[%emt 0:01:33]} Kd6 {[%emt 0:00:24]} 49. g3 {[%emt 0:00:15]} a3 {[%emt 0:00:36]} 50. f4 {[%emt 0:00:44]} exf4 {[%emt 0:00:18]} 51. gxf4 {[%emt 0:00:12]} Rf1 {[%emt 0:00:23]} 52. Kg3 {[%emt 0:00:30]} a2 {[%emt 0:00:15]} 53. Bd3 {[%emt 0:00:45]} a1=Q {[%emt 0:00:30]} 54. Bxf1 {[%emt 0:00:15]} g5 {[%emt 0:00:23]} 55. h4 {[%emt 0:00:12]} 0-1

[Event "CZE-ch Youth G10-G12-G14 2022"]
[Site "Luhacovice"]
[Date "2022.03.18"]
[Round "8.8"]
[White "Martikanova Amalie"]
[Black "Rudova Jana"]
[Result "0-1"]
[ECO "C56"]
[WhiteElo "1245"]
[BlackElo "1000"]
[Annotator "NA"]
[PlyCount "64"]
[EventDate "2022.03.12"]
[EventType "swiss"]
[EventCountry "CZE"]
[SourceTitle "playchess.com"]
[Source "ChessBase"]
[SourceQuality "1"]
[TimeControl "40/5400+30:1800+30"]

1. e4 {[%emt 0:00:05]} e5 {[%emt 0:00:22]} 2. Nf3 {[%emt 0:00:29]} Nc6 {[%emt 0:00:31]} 3. Bc4 {[%emt 0:00:18]} Nf6 {[%emt 0:01:03]} 4. d4 {[%emt 0:00:44]} exd4 {[%emt 0:00:49]} 5. e5 {[%emt 0:00:26]} d5 {[%emt 0:00:17]} 6. Bb5 {[%emt 0:01:33]} Ne4 {[%emt 0:01:26]} 7. Nxd4 {[%emt 0:02:32]} Bd7 {[%emt 0:00:46]} 8. Nxc6 {[%emt 0:02:49]} bxc6 {[%emt 0:00:32]} 9. Bd3 {[%emt 0:01:12]} Bc5 {[%emt 0:04:44]} 10. O-O {[%emt 0:01:47]} O-O {[%emt 0:00:35]} 11. Be3 {[%emt 0:01:07]} Bxe3 {[%emt 0:01:17]} 12. fxe3 {[%emt 0:01:29]} Qe7 {[%emt 0:05:19]} 13. Nd2 {[%emt 0:01:11]} Qxe5 {[%emt 0:01:20]} 14. Nf3 {[%emt 0:03:42]} Qxb2 {[%emt 0:02:51]} 15. Ne1 {[%emt 0:01:36]} g6 {[%emt 0:04:36]} 16. Nf3 {[%emt 0:04:33]} Nf6 {[%emt 0:04:25]} 17. Nd4 {[%emt 0:04:57]} Ng4 {[%emt 0:02:39]} 18. Qf3 {[%emt 0:05:15]} Ne5 {[%emt 0:02:04]} 19. Qg3 {[%emt 0:02:04]} Nxd3 {[%emt 0:03:24]} 20. cxd3 {[%emt 0:01:32]} c5 {[%emt 0:01:10]} 21. Nf3 {[%emt 0:01:10]} c6 {[%emt 0:00:53]} 22. Qh4 {[%emt 0:00:53]} h5 {[%emt 0:00:53]} 23. Qg5 {[%emt 0:01:01]} d4 {[%emt 0:03:28]} 24. Qf6 {[%emt 0:01:11]} Rab8 {[%emt 0:03:15]} 25. e4 {[%emt 0:02:17]} Qc2 {[%emt 0:05:23]} 26. Qg5 {[%emt 0:01:49]} Rb2 {[%emt 0:04:08]} 27. Rf2 {[%emt 0:04:07]} Qxf2+ {[%emt 0:01:51]} 28. Kh1 {[%emt 0:00:22]} Rfb8 {[%emt 0:00:53]} 29. Rg1 {[%emt 0:01:03]} Rb1 {[%emt 0:01:26]} 30. Qh6 {[%emt 0:02:53]} Rxg1+ {[%emt 0:00:41]} 31. Nxg1 {[%emt 0:00:17]} Rb1 {[%emt 0:00:18]} 32. h3 {[%emt 0:00:35]} Qxg1# {[%emt 0:00:36]} 0-1

[Event "CZE-ch Youth G10-G12-G14 2022"]
[Site "Luhacovice"]
[Date "2022.03.18"]
[Round "8.9"]
[White "Jenikova Sabina"]
[Black "Kubalova Nikol"]
[Result "1-0"]
[ECO "D02"]
[WhiteElo "1076"]
[BlackElo "1000"]
[Annotator "NA"]
[PlyCount "47"]
[EventDate "2022.03.12"]
[EventType "swiss"]
[EventCountry "CZE"]
[SourceTitle "playchess.com"]
[Source "ChessBase"]
[SourceQuality "1"]
[TimeControl "40/5400+30:1800+30"]

1. d4 {[%emt 0:00:06]} e6 {[%emt 0:00:10]} 2. Bf4 {[%emt 0:00:13]} Nf6 {[%emt 0:00:36]} 3. Nf3 {[%emt 0:00:23]} d5 {[%emt 0:00:25]} 4. e3 {[%emt 0:00:15]} Bb4+ {[%emt 0:00:27]} 5. c3 {[%emt 0:00:18]} Bd6 {[%emt 0:00:23]} 6. Qa4+ {[%emt 0:00:22]} Bd7 {[%emt 0:00:26]} 7. Bb5 {[%emt 0:00:54]} Bxf4 {[%emt 0:00:25]} 8. Bxd7+ {[%emt 0:00:22]} Nbxd7 {[%emt 0:00:24]} 9. exf4 {[%emt 0:00:13]} O-O {[%emt 0:01:28]} 10. O-O {[%emt 0:00:11]} Nb6 {[%emt 0:00:09]} 11. Qc2 {[%emt 0:00:44]} Ng4 {[%emt 0:00:41]} 12. Ng5 {[%emt 0:00:21]} g6 {[%emt 0:00:22]} 13. Qe2 {[%emt 0:00:24]} Nh6 {[%emt 0:00:44]} 14. Qf3 {[%emt 0:00:18]} Re8 {[%emt 0:01:58]} 15. Qh3 {[%emt 0:00:16]} f6 {[%emt 0:00:33]} 16. Nxe6 {[%emt 0:00:45]} Qd7 {[%emt 0:00:33]} 17. Nxc7 {[%emt 0:01:08]} Qxc7 {[%emt 0:00:45]} 18. Qxh6 {[%emt 0:00:06]} Re6 {[%emt 0:01:23]} 19. Qh3 {[%emt 0:00:42]} Rae8 {[%emt 0:00:19]} 20. f5 {[%emt 0:04:35]} Re1 {[%emt 0:00:38]} 21. Nd2 {[%emt 0:00:00]} Rxa1 {[%emt 0:02:33]} 22. Rxa1 {[%emt 0:00:54]} gxf5 {[%emt 0:00:48]} 23. Qxf5 {[%emt 0:00:13]} Kf7 {[%emt 0:00:30]} 24. h4 {[%emt 0:00:00]} 1-0

[Event "CZE-ch Youth G10-G12-G14 2022"]
[Site "Luhacovice"]
[Date "2022.03.18"]
[Round "8.10"]
[White "Tarielasvili Kira"]
[Black "Topencikova Ellen"]
[Result "1-0"]
[ECO "B11"]
[WhiteElo "1000"]
[BlackElo "1000"]
[Annotator "NA"]
[PlyCount "57"]
[EventDate "2022.03.12"]
[EventType "swiss"]
[EventCountry "CZE"]
[SourceTitle "playchess.com"]
[Source "ChessBase"]
[SourceQuality "1"]
[TimeControl "40/5400+30:1800+30"]

1. e4 {[%emt 0:00:18]} c6 {[%emt 0:00:06]} 2. Nf3 {[%emt 0:00:39]} d5 {[%emt 0:00:11]} 3. Nc3 {[%emt 0:00:18]} Nf6 {[%emt 0:00:33]} 4. d3 {[%emt 0:03:40]} dxe4 {[%emt 0:00:31]} 5. dxe4 {[%emt 0:00:30]} Qxd1+ {[%emt 0:00:19]} 6. Kxd1 {[%emt 0:01:02]} Bg4 {[%emt 0:00:33]} 7. e5 {[%emt 0:02:51]} Bxf3+ {[%emt 0:00:30]} 8. gxf3 {[%emt 0:00:30]} Nd5 {[%emt 0:03:12]} 9. Nxd5 {[%emt 0:00:50]} cxd5 {[%emt 0:00:10]} 10. Be3 {[%emt 0:15:57]} e6 {[%emt 0:00:30]} 11. Bb5+ {[%emt 0:00:30]} Nc6 {[%emt 0:00:30]} 12. Rg1 {[%emt 0:00:30]} a6 {[%emt 0:01:06]} 13. Bd3 {[%emt 0:01:54]} Nxe5 {[%emt 0:02:45]} 14. Be2 {[%emt 0:05:26]} Ng6 {[%emt 0:01:24]} 15. Bd4 {[%emt 0:05:59]} f6 {[%emt 0:00:11]} 16. h3 {[%emt 0:21:05]} Bd6 {[%emt 0:00:30]} 17. h4 {[%emt 0:00:30]} O-O {[%emt 0:00:30]} 18. h5 {[%emt 0:00:30]} e5 {[%emt 0:00:30]} 19. Bb6 {[%emt 0:00:30]} Nf4 {[%emt 0:00:30]} 20. h6 {[%emt 0:00:30]} Rf7 {[%emt 0:00:30]} 21. Bf1 {[%emt 0:00:30]} e4 {[%emt 0:00:30]} 22. fxe4 {[%emt 0:00:30]} dxe4 {[%emt 0:00:30]} 23. Bc4 {[%emt 0:00:30]} Nh3 {[%emt 0:01:17]} 24. Rg4 {[%emt 0:01:53]} f5 {[%emt 0:00:30]} 25. Rxg7+ {[%emt 0:00:30]} Kh8 {[%emt 0:00:37]} 26. Bxf7 {[%emt 0:01:11]} Be5 {[%emt 0:00:51]} 27. Rg2 {[%emt 0:09:27]} Bxb2 {[%emt 0:00:30]} 28. Rb1 {[%emt 0:00:30]} Nf4 {[%emt 0:00:30]} 29. Rg3 {[%emt 0:00:30]} 1-0

[Event "CZE-ch Youth G10-G12-G14 2022"]
[Site "Luhacovice"]
[Date "2022.03.18"]
[Round "8.12"]
[White "Markina, Sofiia"]
[Black "Kozusnikova, Daniela"]
[Result "0-1"]
[ECO "C42"]
[WhiteElo "1367"]
[BlackElo "1364"]
[Annotator "NA"]
[PlyCount "76"]
[EventDate "2022.03.12"]
[EventType "swiss"]
[EventCountry "CZE"]
[SourceTitle "playchess.com"]
[Source "ChessBase"]
[SourceQuality "1"]
[TimeControl "40/5400+30:1800+30"]

1. e4 {[%emt 0:00:04]} e5 {[%emt 0:00:08]} 2. Nf3 {[%emt 0:00:05]} Nf6 {[%emt 0:00:08]} 3. Nxe5 {[%emt 0:00:25]} d6 {[%emt 0:00:05]} 4. Nf3 {[%emt 0:00:20]} Nxe4 {[%emt 0:00:06]} 5. d4 {[%emt 0:00:31]} d5 {[%emt 0:00:08]} 6. Bd3 {[%emt 0:00:21]} Nc6 {[%emt 0:00:10]} 7. O-O {[%emt 0:00:39]} Be7 {[%emt 0:00:09]} 8. c4 {[%emt 0:00:15]} Nb4 {[%emt 0:00:09]} 9. Be2 {[%emt 0:01:02]} O-O {[%emt 0:14:29]} 10. Nc3 {[%emt 0:06:26]} Nxc3 {[%emt 0:02:08]} 11. bxc3 {[%emt 0:00:09]} Nc6 {[%emt 0:00:34]} 12. Bf4 {[%emt 0:08:25]} dxc4 {[%emt 0:12:10]} 13. Bxc4 {[%emt 0:00:56]} Bd6 {[%emt 0:00:43]} 14. Bg5 {[%emt 0:14:11]} Qd7 {[%emt 0:06:04]} 15. Re1 {[%emt 0:05:02]} Na5 {[%emt 0:09:07]} 16. Bd3 {[%emt 0:02:22]} Nc6 {[%emt 0:08:13]} 17. Qc2 {[%emt 0:01:31]} h6 {[%emt 0:01:52]} 18. Bf5 {[%emt 0:00:10]} Qxf5 {[%emt 0:02:12]} 19. Qxf5 {[%emt 0:00:07]} Bxf5 {[%emt 0:00:09]} 20. Bd2 {[%emt 0:00:22]} Rfe8 {[%emt 0:02:07]} 21. a3 {[%emt 0:00:47]} Rxe1+ {[%emt 0:01:06]} 22. Nxe1 {[%emt 0:00:13]} Re8 {[%emt 0:00:48]} 23. Nf3 {[%emt 0:00:07]} Na5 {[%emt 0:01:22]} 24. Be3 {[%emt 0:04:57]} Nc4 {[%emt 0:01:56]} 25. Bc1 {[%emt 0:03:08]} Bg4 {[%emt 0:01:33]} 26. Kf1 {[%emt 0:00:45]} Bxf3 {[%emt 0:01:54]} 27. gxf3 {[%emt 0:00:07]} Re6 {[%emt 0:01:12]} 28. h3 {[%emt 0:01:29]} Rf6 {[%emt 0:01:48]} 29. Ke2 {[%emt 0:00:38]} Bf4 {[%emt 0:04:16]} 30. Bxf4 {[%emt 0:00:24]} Rxf4 {[%emt 0:00:06]} 31. Kd3 {[%emt 0:00:21]} Nb6 {[%emt 0:00:25]} 32. Ke3 {[%emt 0:00:09]} Rh4 {[%emt 0:00:32]} 33. a4 {[%emt 0:00:32]} a5 {[%emt 0:00:08]} 34. Kd3 {[%emt 0:00:57]} Rxh3 {[%emt 0:00:31]} 35. c4 {[%emt 0:00:08]} Rxf3+ {[%emt 0:00:21]} 36. Ke2 {[%emt 0:00:21]} Rb3 {[%emt 0:00:52]} 37. c5 {[%emt 0:00:20]} Nd5 {[%emt 0:00:30]} 38. Kf1 {[%emt 0:01:52]} Rb4 {[%emt 0:00:31]} 0-1

[Event "CZE-ch Youth G10-G12-G14 2022"]
[Site "Luhacovice"]
[Date "2022.03.18"]
[Round "8.13"]
[White "Buchtova, Viktorie"]
[Black "Horkova, Tereza"]
[Result "0-1"]
[ECO "B45"]
[WhiteElo "1464"]
[BlackElo "1375"]
[Annotator "NA"]
[PlyCount "104"]
[EventDate "2022.03.12"]
[EventType "swiss"]
[EventCountry "CZE"]
[SourceTitle "playchess.com"]
[Source "ChessBase"]
[SourceQuality "1"]
[TimeControl "40/5400+30:1800+30"]

1. e4 {[%emt 0:00:06]} c5 {[%emt 0:00:07]} 2. Nf3 {[%emt 0:00:04]} e6 {[%emt 0:00:07]} 3. d4 {[%emt 0:00:03]} cxd4 {[%emt 0:00:07]} 4. Nxd4 {[%emt 0:00:06]} Nf6 {[%emt 0:00:03]} 5. Nc3 {[%emt 0:00:04]} Nc6 {[%emt 0:00:04]} 6. Ndb5 {[%emt 0:00:20]} Bb4 {[%emt 0:00:11]} 7. a3 {[%emt 0:00:31]} Bxc3+ {[%emt 0:00:07]} 8. Nxc3 {[%emt 0:00:04]} d5 {[%emt 0:00:22]} 9. Bg5 {[%emt 0:01:43]} d4 {[%emt 0:04:58]} 10. Ne2 {[%emt 0:08:09]} Qa5+ {[%emt 0:02:56]} 11. Qd2 {[%emt 0:08:57]} Qxd2+ {[%emt 0:02:53]} 12. Bxd2 {[%emt 0:00:05]} Nxe4 {[%emt 0:00:15]} 13. Bf4 {[%emt 0:06:05]} e5 {[%emt 0:02:56]} 14. f3 {[%emt 0:03:51]} Nd6 {[%emt 0:06:36]} 15. Bg3 {[%emt 0:02:34]} O-O {[%emt 0:01:43]} 16. O-O-O {[%emt 0:01:21]} Nf5 {[%emt 0:03:28]} 17. f4 {[%emt 0:03:35]} e4 {[%emt 0:08:46]} 18. h3 {[%emt 0:12:07]} Be6 {[%emt 0:02:01]} 19. Bf2 {[%emt 0:02:19]} e3 {[%emt 0:00:37]} 20. g4 {[%emt 0:04:21]} Nfe7 {[%emt 0:04:51]} 21. Bh4 {[%emt 0:06:05]} Bd5 {[%emt 0:06:04]} 22. Rg1 {[%emt 0:02:18]} Ng6 {[%emt 0:01:55]} 23. Bg3 {[%emt 0:08:11]} Bf3 {[%emt 0:00:49]} 24. f5 {[%emt 0:01:53]} Bxe2 {[%emt 0:04:10]} 25. Bxe2 {[%emt 0:05:15]} Nge7 {[%emt 0:17:06]} 26. Bh4 {[%emt 0:00:13]} Rfd8 {[%emt 0:01:04]} 27. f6 {[%emt 0:03:18]} Ng6 {[%emt 0:00:30]} 28. Bg3 {[%emt 0:00:30]} gxf6 {[%emt 0:00:54]} 29. Rgf1 {[%emt 0:02:37]} Kg7 {[%emt 0:00:54]} 30. Rf5 {[%emt 0:02:15]} Nce7 {[%emt 0:03:39]} 31. Rb5 {[%emt 0:02:12]} b6 {[%emt 0:04:21]} 32. Bf3 {[%emt 0:01:51]} Rac8 {[%emt 0:00:16]} 33. Rb4 {[%emt 0:00:08]} d3 {[%emt 0:00:31]} 34. c3 {[%emt 0:00:37]} e2 {[%emt 0:03:50]} 35. Rd2 {[%emt 0:00:05]} Ne5 {[%emt 0:01:52]} 36. Be4 {[%emt 0:02:00]} N7c6 {[%emt 0:08:48]} 37. Bxc6 {[%emt 0:01:37]} Rxc6 {[%emt 0:00:11]} 38. Rf4 {[%emt 0:01:29]} Nc4 {[%emt 0:01:53]} 39. Rd4 {[%emt 0:01:47]} Rxd4 {[%emt 0:00:40]} 40. cxd4 {[%emt 0:00:10]} Nxd2+ {[%emt 0:00:33]} 41. Kxd2 {[%emt 0:30:52]} Rc2+ {[%emt 0:30:30]} 42. Kxd3 {[%emt 0:00:30]} Rxb2 {[%emt 0:00:30]} 43. Bf2 {[%emt 0:00:30]} Rb3+ {[%emt 0:00:30]} 44. Kxe2 {[%emt 0:00:30]} Rxa3 {[%emt 0:00:30]} 45. h4 {[%emt 0:00:30]} a5 {[%emt 0:00:30]} 46. d5 {[%emt 0:00:30]} Rb3 {[%emt 0:00:30]} 47. d6 {[%emt 0:00:30]} Rb2+ {[%emt 0:00:27]} 48. Ke3 {[%emt 0:00:41]} Kf8 {[%emt 0:00:33]} 49. Bg3 {[%emt 0:01:27]} Rb3+ {[%emt 0:00:21]} 50. Kf4 {[%emt 0:00:15]} Rxg3 {[%emt 0:00:13]} 51. Kf5 {[%emt 0:00:34]} Rd3 {[%emt 0:00:54]} 52. Kxf6 {[%emt 0:00:11]} Rxd6+ {[%emt 0:00:10]} 0-1

[Event "CZE-ch Youth G10-G12-G14 2022"]
[Site "Luhacovice"]
[Date "2022.03.18"]
[Round "8.14"]
[White "Slivova, Linda"]
[Black "Barteckova, Valerie"]
[Result "1/2-1/2"]
[ECO "D12"]
[WhiteElo "1298"]
[BlackElo "1250"]
[Annotator "NA"]
[PlyCount "95"]
[EventDate "2022.03.12"]
[EventType "swiss"]
[EventCountry "CZE"]
[SourceTitle "playchess.com"]
[Source "ChessBase"]
[SourceQuality "1"]
[TimeControl "40/5400+30:1800+30"]

1. d4 {[%emt 0:00:04]} d5 {[%emt 0:00:20]} 2. e3 {[%emt 0:00:10]} Bf5 {[%emt 0:00:34]} 3. c4 {[%emt 0:00:57]} c6 {[%emt 0:00:25]} 4. Qb3 {[%emt 0:00:55]} Qc7 {[%emt 0:00:32]} 5. Nc3 {[%emt 0:02:54]} e6 {[%emt 0:00:41]} 6. Nf3 {[%emt 0:04:51]} Nf6 {[%emt 0:02:31]} 7. Be2 {[%emt 0:05:38]} Bd6 {[%emt 0:04:47]} 8. c5 {[%emt 0:00:49]} Be7 {[%emt 0:01:22]} 9. O-O {[%emt 0:02:58]} Nbd7 {[%emt 0:03:04]} 10. Bd2 {[%emt 0:06:04]} O-O {[%emt 0:00:49]} 11. h3 {[%emt 0:05:58]} h6 {[%emt 0:03:07]} 12. Qd1 {[%emt 0:06:20]} Ne4 {[%emt 0:08:25]} 13. Nxe4 {[%emt 0:07:01]} Bxe4 {[%emt 0:00:33]} 14. b4 {[%emt 0:00:34]} Bf6 {[%emt 0:03:35]} 15. Bc3 {[%emt 0:02:29]} e5 {[%emt 0:09:16]} 16. dxe5 {[%emt 0:06:47]} Nxe5 {[%emt 0:01:11]} 17. Nxe5 {[%emt 0:00:15]} Bxe5 {[%emt 0:00:24]} 18. Bxe5 {[%emt 0:00:08]} Qxe5 {[%emt 0:00:10]} 19. Qd4 {[%emt 0:00:14]} Qg5 {[%emt 0:02:37]} 20. g3 {[%emt 0:07:11]} Rfe8 {[%emt 0:08:14]} 21. Bd3 {[%emt 0:03:40]} Re7 {[%emt 0:09:29]} 22. Bxe4 {[%emt 0:01:41]} Rxe4 {[%emt 0:00:22]} 23. Qc3 {[%emt 0:01:04]} Rae8 {[%emt 0:01:06]} 24. Rad1 {[%emt 0:00:58]} a6 {[%emt 0:02:42]} 25. Rd4 {[%emt 0:07:59]} Rxd4 {[%emt 0:03:00]} 26. exd4 {[%emt 0:03:23]} Qf6 {[%emt 0:01:47]} 27. Re1 {[%emt 0:03:55]} Rxe1+ {[%emt 0:00:29]} 28. Qxe1 {[%emt 0:00:03]} Kf8 {[%emt 0:00:16]} 29. Qe3 {[%emt 0:01:02]} Qf5 {[%emt 0:01:12]} 30. Kg2 {[%emt 0:01:59]} Qc2 {[%emt 0:01:00]} 31. Qf4 {[%emt 0:02:10]} Qe4+ {[%emt 0:02:03]} 32. Qxe4 {[%emt 0:00:56]} dxe4 {[%emt 0:00:17]} 33. f3 {[%emt 0:01:32]} exf3+ {[%emt 0:00:28]} 34. Kxf3 {[%emt 0:00:05]} Ke7 {[%emt 0:00:11]} 35. Ke4 {[%emt 0:01:30]} Ke6 {[%emt 0:00:45]} 36. g4 {[%emt 0:00:16]} g6 {[%emt 0:01:43]} 37. h4 {[%emt 0:07:17]} f6 {[%emt 0:06:07]} 38. a4 {[%emt 0:02:13]} f5+ {[%emt 0:02:16]} 39. gxf5+ {[%emt 0:00:17]} gxf5+ {[%emt 0:00:04]} 40. Kf4 {[%emt 0:00:12]} Kf6 {[%emt 0:02:02]} 41. Kf3 {[%emt 0:31:21]} Kg6 {[%emt 0:31:38]} 42. Kf4 {[%emt 0:00:20]} Kh5 {[%emt 0:01:19]} 43. Kxf5 {[%emt 0:00:39]} Kxh4 {[%emt 0:00:08]} 44. b5 {[%emt 0:00:56]} axb5 {[%emt 0:00:10]} 45. axb5 {[%emt 0:00:07]} cxb5 {[%emt 0:00:05]} 46. d5 {[%emt 0:00:10]} b4 {[%emt 0:00:36]} 47. d6 {[%emt 0:00:11]} b3 {[%emt 0:00:21]} 48. d7 {[%emt 0:00:11]} 1/2-1/2

[Event "CZE-ch Youth G10-G12-G14 2022"]
[Site "Luhacovice"]
[Date "2022.03.18"]
[Round "8.15"]
[White "Martinkova Klara"]
[Black "Kammova, Katerina"]
[Result "1-0"]
[ECO "C01"]
[WhiteElo "1177"]
[BlackElo "1376"]
[Annotator "NA"]
[PlyCount "67"]
[EventDate "2022.03.12"]
[EventType "swiss"]
[EventCountry "CZE"]
[SourceTitle "playchess.com"]
[Source "ChessBase"]
[SourceQuality "1"]
[TimeControl "40/5400+30:1800+30"]

1. e4 {[%emt 0:00:05]} e6 {[%emt 0:00:08]} 2. d4 {[%emt 0:00:35]} d5 {[%emt 0:00:11]} 3. exd5 {[%emt 0:00:35]} exd5 {[%emt 0:00:12]} 4. c4 {[%emt 0:00:20]} Bb4+ {[%emt 0:01:08]} 5. Nc3 {[%emt 0:01:32]} Nf6 {[%emt 0:00:50]} 6. Bg5 {[%emt 0:01:54]} O-O {[%emt 0:01:23]} 7. Bd3 {[%emt 0:04:51]} dxc4 {[%emt 0:02:52]} 8. Bxc4 {[%emt 0:01:09]} Nc6 {[%emt 0:07:19]} 9. Nge2 {[%emt 0:00:25]} a6 {[%emt 0:07:22]} 10. O-O {[%emt 0:00:43]} h6 {[%emt 0:03:01]} 11. Bh4 {[%emt 0:00:30]} Bg4 {[%emt 0:06:42]} 12. f3 {[%emt 0:01:59]} Bf5 {[%emt 0:01:32]} 13. Nd5 {[%emt 0:04:26]} Be7 {[%emt 0:09:11]} 14. Nxe7+ {[%emt 0:02:57]} Qxe7 {[%emt 0:00:35]} 15. Ng3 {[%emt 0:03:14]} Bh7 {[%emt 0:13:52]} 16. Re1 {[%emt 0:10:41]} Qd6 {[%emt 0:01:36]} 17. Ne2 {[%emt 0:03:15]} Rac8 {[%emt 0:04:20]} 18. Qd2 {[%emt 0:04:12]} Nd5 {[%emt 0:04:51]} 19. Bxd5 {[%emt 0:08:18]} Qxd5 {[%emt 0:00:53]} 20. a3 {[%emt 0:01:34]} Rfe8 {[%emt 0:02:45]} 21. Rac1 {[%emt 0:05:07]} Qa5 {[%emt 0:10:44]} 22. Qxa5 {[%emt 0:04:19]} Nxa5 {[%emt 0:00:25]} 23. Bg3 {[%emt 0:04:24]} Nc6 {[%emt 0:04:16]} 24. d5 {[%emt 0:03:18]} Ne5 {[%emt 0:02:01]} 25. Nd4 {[%emt 0:02:04]} f6 {[%emt 0:04:49]} 26. f4 {[%emt 0:04:57]} Nd3 {[%emt 0:04:40]} 27. Rxe8+ {[%emt 0:00:48]} Rxe8 {[%emt 0:00:09]} 28. Rxc7 {[%emt 0:00:12]} b6 {[%emt 0:01:15]} 29. d6 {[%emt 0:01:01]} Rd8 {[%emt 0:05:12]} 30. d7 {[%emt 0:00:15]} Kf7 {[%emt 0:00:22]} 31. Rb7 {[%emt 0:01:18]} b5 {[%emt 0:00:15]} 32. Nc6 {[%emt 0:00:30]} Be4 {[%emt 0:00:58]} 33. Nxd8+ {[%emt 0:00:16]} Ke7 {[%emt 0:00:05]} 34. Nf7 {[%emt 0:03:52]} 1-0